Workbook

Sheet ATM
B1: Supermarket ATM
B3: A chain of supermarkets has learned (from the collection of data over several
B4: months) that the daily weekday draw from the cash machine at its Tel Aviv store
B5: is normally distributed (and varies independently from day to day), with a mean
B6: of $15,000 and a standard deviation of $6,000.
B8: What is the probability that the Monday draw exceeds $18,000?
B10: They stock the cash machine on Mondays and Fridays (four days apart). On
B11: Monday, they put $75,000 in the machine. How likely is it that the machine will
B12: run dry before the Friday refill?
B15: 15000 | C15: mean daily draw
B16: 6000 | C16: std dev of daily draw
B18: 18000 | C18: Monday limit
B19: =1-NORMDIST(B18,B15,B16,TRUE) -> 0.3085375387 | C19: Pr( Monday draw over limit ) | F19: =showformula(B19) -> =1-NORMDIST(B18,B15,B16,TRUE)
B21: 4 | C21: k (days before restocking)
B22: =B21*B15 -> 60000 | C22: mean over k days | F22: =showformula(B22) -> =B21*B15
B23: =SQRT(B21)*B16 -> 12000 | C23: standard deviation over k days | F23: =showformula(B23) -> =SQRT(B21)*B16
B24: 75000 | C24: limit
B25: =1-NORMDIST(B24,B22,B23,TRUE) -> 0.1056497737 | C25: Pr( k-day draw is over limit ) | F25: =showformula(B25) -> =1-NORMDIST(B24,B22,B23,TRUE)
B28: Via simulation:
F29: =showformula(B29) -> 
B30: =NORMINV(RAND(),$B$15,$B$16) -> 15000.27503 | C30: Monday draw | F30: =showformula(B30) -> =NORMINV(RAND(),$B$15,$B$16)
B31: =NORMINV(RAND(),$B$15,$B$16) -> 19094.77263 | C31: Tuesday draw | F31: =showformula(B31) -> =NORMINV(RAND(),$B$15,$B$16)
B32: =NORMINV(RAND(),$B$15,$B$16) -> 12108.73601 | C32: Wednesday draw | F32: =showformula(B32) -> =NORMINV(RAND(),$B$15,$B$16)
B33: =NORMINV(RAND(),$B$15,$B$16) -> 18814.63284 | C33: Thursday draw | F33: =showformula(B33) -> =NORMINV(RAND(),$B$15,$B$16)
B35: =SUM(B30:B33) -> 65018.41651 | C35: four-day draw | F35: =showformula(B35) -> =SUM(B30:B33)
B37: =IF(B35>B24,1,0) -> 0 | C37: Is the four-day draw over $75,000?
B39: =ADDRESS(ROW($B$35),COLUMN($B$35)) -> $B$35 | C39: =ADDRESS(ROW($B$37),COLUMN($B$37)) -> $B$37 | D39: monitored cell
B40: 59986.44414 | C40: 0.10557 | D40: mean
B41: 11967.81075 | C41: 0.3072880072 | D41: sample standard deviation
B42: 6857.917808 | C42: 0 | D42: minimum
B43: 112837.9662 | C43: 1 | D43: maximum
B44: 100000 | C44: 100000 | D44: number of simulation runs
B46: =1.96*B41/SQRT(B44) -> 74.17725955 | C46: =1.96*C41/SQRT(C44) -> 0.001904590801 | D46: margin of error (95% confidence)

Sheet Newsstand sales
B1: Weekly Newspaper Demand
B3: Weekly newsstand sales of a local (weekly, nonsubscription) newspaper are
B4: normally distributed, with a mean of 6,000 and a standard deviation of 700.
B6: How likely is it that a press run of 7,000 copies will sell out?
B8: What total monthly sales (4 issues) could the newspaper publisher guarantee to
B9: a regular advertiser, while having a 90% chance of meeting the guarantee?
B12: 6000 | C12: mean weekly sales
B13: 700 | C13: standard deviation
B15: 7000 | C15: press run
B16: =1-NORMDIST(B15,B12,B13,TRUE) -> 0.07656372551 | C16: Pr( press run insufficient ) | F16: =showformula(B16) -> =1-NORMDIST(B15,B12,B13,TRUE)
B18: 4 | C18: issues / month
B19: =B18*B12 -> 24000 | C19: mean monthly sales | F19: =showformula(B19) -> =B18*B12
B20: =SQRT(B18)*B13 -> 1400 | C20: monthly standard deviation | F20: =showformula(B20) -> =SQRT(B18)*B13
B21: 0.9 | C21: Pr( meet guarantee )
B22: =NORMINV(1-B21,B19,B20) -> 22205.82781 | C22: sales that can be guaranteed | F22: =showformula(B22) -> =NORMINV(1-B21,B19,B20)

Sheet Mufflers
B1: Fred's Cut-Rate Muffler Shop
B3: Fred's muffler shop employess 9 mechanics for 8 hours per day. A typical
B4: muffler replacement (this is all that the shop does) takes, on average, 1.25
B5: hours, with one standard-deviation's-worth of uncertainty being 15 minutes.
B6: Today, 60 cars have been booked for servicing.
B8: How likely is it that Fred will find himself paying some overtime today?
B11: The sum of the 60 service times will be (by the Central Limit Theorem) roughly normally
B12: distributed. Assuming (quite plausibly) that the service times vary independently, the
B13: expected total service time for | E13: 60 | F13: cars is | G13: =E13*1.25 -> 75 | H13: hours, | J13: =showformula(G13) -> =E13*1.25
B14: and the total service time has a standard deviation of | G14: =SQRT(E13)*0.25 -> 1.936491673 | H14: hours. | J14: =showformula(G14) -> =SQRT(E13)*0.25
B16: Consequently, the likelihood that the total time needed exceeds 72 hours is | I16: =1-NORMDIST(72,G13,G14,TRUE) -> 0.9393323748 | J16: =showformula(I16) -> =1-NORMDIST(72,G13,G14,TRUE)
B19: How many cars could Fred book, and have no more than a 10% chance of
B20: needing to pay overtime?
B23: A data table makes easy work of this question:
D25: cars | E25: =I16 -> 0.9393323748 | F25: =showformula(E25) -> =I16
D26: 54 | E26: 0.007152939218
D27: 55 | E27: 0.03980790073
D28: 56 | E28: 0.1425247037
D29: 57 | E29: 0.3455511119
D30: 58 | E30: 0.6035755087
D31: 59 | E31: 0.8189372303
D32: 60 | E32: 0.9393323748

Sheet Continuity correction
B1: Sonshiba Printers
B3: Inkjet printer manufacturers make their profits on ink cartridges. Indeed, to get a
B4: customer committed to using one of their printers (and therefore potentially buying
B5: replacement cartridges for that printer in the future), they will sometimes sell a printer
B6: and a full set of cartridges for less than the price of a set of replacement cartridges
B7: alone.
B9: Wise purchasers will at times buy a pair of identical printers, getting two printers and
B10: two sets of cartridges for less than the separate cost of a single printer with cartridges,
B11: and a later set of replacement cartridges.
B13: Your online store will soon run a promotion on Sonshiba printers, selling them at a very
B14: attractive price. The deal will only be available to the first 100 online orderers, each of
B15: whom will be allowed to order either one or two printers. From previous promotions, you
B16: estimate that 65% of the callers will indeed order two printers. (Callers make their
B17: purchasing decisions independently of one another.)
B19: What is the probability that, during the promotion, you will sell at least 160 Sonshiba
B20: printers?
C22: x | D22: Pr(X=x)
C23: 1 | D23: =1-D24 -> 0.35
C24: 2 | D24: 0.65
C26: =SUMPRODUCT(C23:C24,D23:D24) -> 1.65 | D26: E[X] | F26: =showformula(C26) -> =SUMPRODUCT(C23:C24,D23:D24)
C27: =SQRT(SUMPRODUCT(C23:C24^2,D23:D24)-C26^2) -> 0.4769696007 | D27: StDev(X) | F27: =showformula(C27) -> =SQRT(SUMPRODUCT(C23:C24^2,D23:D24)-C26^2)
C31: 100 | D31: callers
C32: =C31*C26 -> 165 | D32: E[printers ordered] | G32: =showformula(C32) -> =C31*C26
C33: =SQRT(C31)*C27 -> 4.769696007 | D33: StDev(printers ordered) | G33: =showformula(C33) -> =SQRT(C31)*C27
C35: =1-NORMDIST(159,C32,C33,TRUE) -> 0.8957935982 | G35: =showformula(C35) -> =1-NORMDIST(159,C32,C33,TRUE)
B36: best! | C36: =1-NORMDIST(159.5,C32,C33,TRUE) -> 0.8755680625 | D36: Pr(printers ordered ≥ 160) | G36: =showformula(C36) -> =1-NORMDIST(159.5,C32,C33,TRUE) | K36: applying the continuity correction
C37: =1-NORMDIST(160,C32,C33,TRUE) -> 0.8527463032 | G37: =showformula(C37) -> =1-NORMDIST(160,C32,C33,TRUE)

Sheet Overtime
B1: Fred's Cut-Rate Muffler Shop (continued)
B3: Fred's muffler shop employs 9 mechanics for 8 hours per day. A typical
B4: muffler replacement (this is all that the shop does) takes, on average, 1.25
B5: hours, with one standard-deviation's-worth of uncertainty being 15 minutes.
B6: Today, 60 cars have been booked for servicing.
B8: Fred's mechanics cost Fred $240/ (guaranteed 8-hour) workday in wages and
B9: benefits. Any worktime over 8 hours in a day for a worker costs Fred $45/hour.
B11: What is Fred's expected labor cost for the day?
B14: From our previous analysis, the total worktime required is (approximately) normal:
B16: 75 | C16: expected time required
B17: 1.936491673 | C17: standard deviation
B19: We can solve this problem via simulation:
B21: =NORMINV(RAND(),B16,B17) -> 74.85899414 | C21: required worktime | E21: =showformula(B21) -> =NORMINV(RAND(),B16,B17)
B23: =9*240 -> 2160 | C23: standard workday payroll
B24: =MAX(0,B21-72)*45 -> 128.6547365 | C24: overtime | E24: =showformula(B24) -> =MAX(0,B21-72)*45
B25: =B23+B24 -> 2288.654737 | C25: total
B26: =IF(B24>0,1,0) -> 1 | C26: overtime required?
D28: =ADDRESS(ROW($B$24),COLUMN($B$24)) -> $B$24 | E28: =ADDRESS(ROW($B$25),COLUMN($B$25)) -> $B$25 | F28: =ADDRESS(ROW($B$26),COLUMN($B$26)) -> $B$26 | G28: monitored cell
D29: 137.1010434 | E29: 2297.101043 | F29: 0.93953 | G29: mean
D30: 82.14078906 | E30: 82.14078905 | F30: 0.2383567646 | G30: sample standard deviation
D31: 0 | E31: 2160 | F31: 0 | G31: minimum
D32: 540.4731 | E32: 2700.4731 | F32: 1 | G32: maximum
D33: 100000 | E33: 100000 | F33: 100000 | G33: number of simulation runs
D35: =1.96*D30/SQRT(D33) -> 0.5091138851 | E35: =1.96*E30/SQRT(E33) -> 0.5091138851 | F35: =1.96*F30/SQRT(F33) -> 0.001477350533 | G35: margin of error (95% confidence)
B37: We can also solve it analytically, using the formula for conditional normal expectations:
B39: =B23+45*(1-NORMDIST(72,B16,B17,TRUE))*(B16+B17^2*NORMDIST(72,B16,B17,FALSE)/(1-NORMDIST(72,B16,B17,TRUE))-72) -> 2297.28079 | C39: =showformula(B39) -> =B23+45*(1-NORMDIST(72,B16,B17,TRUE))*(B16+B17^2*NORMDIST(72,B16,B17,FALSE)/(1-NORMDIST(72,B16,B17,TRUE))-72)

Sheet Normal miscellany
B1: Using the normal distribution
B3: Given that Z is a standard normal random variable, find Z for each situation:
B5: The area to the right of Z is 0.01.
B6: The area to the right of Z is 0.025
B7: The area to the right of Z is 0.05
B8: The area to the right of Z is 0.10.
C10: p | D10: z
C11: 0.01 | D11: =NORMSINV(1-C11) -> 2.326347874
C12: 0.025 | D12: =NORMSINV(1-C12) -> 1.959963985
C13: 0.05 | D13: =NORMSINV(1-C13) -> 1.644853627
C14: 0.1 | D14: =NORMSINV(1-C14) -> 1.281551566
B18: The mean cost for employee alcohol rehabilitation programs involving hospitalization is
B19: $10,000 (USA Today, September 12, 1991). Assume that the rehabilitation program
B20: cost has a normal probability distribution with a standard deviation of $2200. Answer
B21: the following questions.
B23: What is the probability that a rehabilitation program will cost at least $12,000?
B24: What is the probability that a rehabilitation program will cost at least $6,000?
B25: What is the cost range for the most expensive 10% of the rehabilitation programs?
C27: 10000 | D27: mean rehab cost
C28: 2200 | D28: standard deviation
C30: =1-NORMDIST(12000,C27,C28,TRUE) -> 0.1816510704 | D30: Pr( cost > $12,000 )
C31: =1-NORMDIST(6000,C27,C28,TRUE) -> 0.965481826 | D31: Pr( cost > $6,000 )
C32: =NORMINV(0.9,C27,C28) -> 12819.41344 | D32: lower end of range for most expensive 10%
B35: Drivers who are members of the Teamsters Union can earn an average of $17.15 per
B36: hour (U.S News & World Report, April 11, 1194). Assume that available data indicate
B37: wages are normally distributed with a standard deviation of $2.25.
B39: What is the probability that wages are between $15.00 and $20.00 per hour?
B40: What is the hourly wage of the highest paid 15% of the Teamster drivers?
B41: What is the probability that wages are less than $12.00 per hour?
C43: 17.15 | D43: mean hourly wage
C44: 2.25 | D44: standard deviation
C46: =NORMDIST(20,C43,C44,TRUE)-NORMDIST(15,C43,C44,TRUE) -> 0.7277143357 | D46: Pr( wages between $15 and $20 )
C47: =NORMINV(0.85,C43,C44) -> 19.48197513 | D47: lower end of range for highest-paid 15%
C48: =NORMDIST(12,C43,C44,TRUE) -> 0.0110429045 | D48: Pr( wages less than $12 )
